[Event "85th Southwest Open 2019"]
[Site "Dallas"]
[Date "2019.09.01"]
[Round "6.3"]
[White "Belous, Vladimir"]
[Black "Stukopin, Andrey"]
[Result "1/2-1/2"]
[ECO "E38"]
[WhiteElo "2497"]
[BlackElo "2564"]
[Annotator "ChessBase"]
[PlyCount "27"]
[EventDate "2019.08.29"]
[EventType "swiss"]
[EventCountry "USA"]
[SourceTitle "playchess.com"]
[Source "ChessBase"]
[SourceQuality "1"]
[TimeControl "5400+30"]

1. d4 {[%emt 0:01:48]} Nf6 {[%emt 0:00:00]} 2. c4 {[%emt 0:00:06]} e6 {[%emt 0:00:00]} 3. Nc3 {[%emt 0:00:03]} Bb4 {[%emt 0:00:00]} 4. Qc2 {[%emt 0:00:11]} O-O {[%emt 0:00:06]} 5. Nf3 {[%emt 0:00:45]} c5 {[%emt 0:03:33]} 6. Bg5 {[%emt 0:00:26]} h6 {[%emt 0:02:09]} 7. Bxf6 {[%emt 0:03:10]} Qxf6 {[%emt 0:00:09]} 8. a3 {[%emt 0:00:04]} Bxc3+ {[%emt 0:01:49]} 9. Qxc3 {[%emt 0:00:04]} d6 {[%emt 0:02:40]} 10. e3 {[%emt 0:03:56]} b6 {[%emt 0:00:38]} 11. Be2 {[%emt 0:00:22]} Bb7 {[%emt 0:00:10]} 12. O-O {[%emt 0:00:12]} Nd7 {[%emt 0:04:14]} 13. Rfd1 {[%emt 0:01:04]} Rac8 {[%emt 0:12:54]} 14. Rac1 {[%emt 0:00:37]} 1/2-1/2

[Event "85th Southwest Open 2019"]
[Site "Dallas"]
[Date "2019.09.01"]
[Round "6.6"]
[White "Drozdowski, Kacper"]
[Black "Reshef, Omer"]
[Result "1/2-1/2"]
[ECO "C42"]
[WhiteElo "2484"]
[BlackElo "2467"]
[Annotator "ChessBase"]
[PlyCount "72"]
[EventDate "2019.08.29"]
[EventType "swiss"]
[EventCountry "USA"]
[SourceTitle "playchess.com"]
[Source "ChessBase"]
[SourceQuality "1"]
[TimeControl "5400+30"]

1. e4 {[%emt 0:00:00]} e5 {[%emt 0:00:02]} 2. Nf3 {[%emt 0:00:00]} Nf6 {[%emt 0:01:12]} 3. Nxe5 {[%emt 0:00:00]} d6 {[%emt 0:00:03]} 4. Nf3 {[%emt 0:00:14]} Nxe4 {[%emt 0:00:07]} 5. Nc3 {[%emt 0:00:48]} Nxc3 {[%emt 0:00:13]} 6. dxc3 {[%emt 0:00:12]} Be7 {[%emt 0:00:04]} 7. Bf4 {[%emt 0:00:22]} Nc6 {[%emt 0:01:25]} 8. Qd2 {[%emt 0:00:22]} Be6 {[%emt 0:01:21]} 9. Bd3 {[%emt 0:04:59]} Qd7 {[%emt 0:01:58]} 10. O-O {[%emt 0:00:32]} O-O {[%emt 0:02:58]} 11. Rfe1 {[%emt 0:00:27]} Rfe8 {[%emt 0:01:32]} 12. h3 {[%emt 0:00:16]} a6 {[%emt 0:02:50]} 13. Re2 {[%emt 0:00:45]} Bf5 {[%emt 0:01:53]} 14. Rae1 {[%emt 0:00:50]} Bxd3 {[%emt 0:00:27]} 15. cxd3 {[%emt 0:00:41]} Bf6 {[%emt 0:01:33]} 16. d4 {[%emt 0:01:07]} Ne7 {[%emt 0:09:07]} 17. Bg5 {[%emt 0:00:24]} Bxg5 {[%emt 0:02:41]} 18. Qxg5 {[%emt 0:00:49]} f6 {[%emt 0:02:01]} 19. Qd2 {[%emt 0:01:12]} c6 {[%emt 0:01:54]} 20. g3 {[%emt 0:02:14]} d5 {[%emt 0:00:19]} 21. Nh4 {[%emt 0:00:53]} Ng6 {[%emt 0:01:06]} 22. Nxg6 {[%emt 0:00:24]} hxg6 {[%emt 0:00:16]} 23. h4 {[%emt 0:00:07]} Kf7 {[%emt 0:01:05]} 24. Qf4 {[%emt 0:00:16]} Rxe2 {[%emt 0:00:58]} 25. Rxe2 {[%emt 0:00:04]} Re8 {[%emt 0:00:06]} 26. Rxe8 {[%emt 0:00:16]} Kxe8 {[%emt 0:01:16]} 27. Qb8+ {[%emt 0:00:07]} Kf7 {[%emt 0:00:06]} 28. Kf1 {[%emt 0:00:20]} Qh3+ {[%emt 0:01:01]} 29. Kg1 {[%emt 0:00:07]} Qd7 {[%emt 0:00:05]} 30. Kf1 {[%emt 0:00:16]} Qh3+ {[%emt 0:00:34]} 31. Ke2 {[%emt 0:01:53]} Qd7 {[%emt 0:01:11]} 32. Kf3 {[%emt 0:02:41]} Qf5+ {[%emt 0:01:23]} 33. Kg2 {[%emt 0:00:06]} Qd7 {[%emt 0:00:09]} 34. Kf1 {[%emt 0:00:36]} Qh3+ {[%emt 0:00:21]} 35. Kg1 {[%emt 0:00:05]} Qd7 {[%emt 0:00:15]} 36. Kf1 {[%emt 0:00:27]} Qh3+ {[%emt 0:00:08]} 1/2-1/2

[Event "85th Southwest Open 2019"]
[Site "Dallas"]
[Date "2019.09.01"]
[Round "6.10"]
[White "Grinberg, Eyal"]
[Black "Nguyen, Emily"]
[Result "0-1"]
[ECO "C90"]
[WhiteElo "2486"]
[BlackElo "2183"]
[Annotator "RC"]
[PlyCount "134"]
[EventDate "2019.08.29"]
[EventType "swiss"]
[EventCountry "USA"]
[SourceTitle "playchess.com"]
[Source "ChessBase"]
[SourceQuality "1"]
[TimeControl "5400+30"]

1. e4 {[%emt 0:00:00]} e5 {[%emt 0:01:48]} 2. Nf3 {[%emt 0:00:00]} Nc6 {[%emt 0:00:02]} 3. Bb5 {[%emt 0:00:00]} a6 {[%emt 0:00:04]} 4. Ba4 {[%emt 0:00:00]} Nf6 {[%emt 0:00:06]} 5. O-O {[%emt 0:00:04]} Be7 {[%emt 0:00:16]} 6. d3 {[%emt 0:00:13]} b5 {[%emt 0:00:10]} 7. Bb3 {[%emt 0:00:05]} d6 {[%emt 0:00:04]} 8. c3 {[%emt 0:00:08]} O-O {[%emt 0:00:04]} 9. Re1 {[%emt 0:00:19]} Bb7 {[%emt 0:00:07]} 10. Nbd2 {[%emt 0:00:52]} Na5 {[%emt 0:00:49]} 11. Bc2 {[%emt 0:00:06]} c5 {[%emt 0:00:35]} 12. Nf1 {[%emt 0:00:25]} Nc6 {[%emt 0:05:00]} 13. Ng3 {[%emt 0:04:02]} g6 {[%emt 0:03:09]} 14. d4 {[%emt 0:00:08]} cxd4 {[%emt 0:05:05]} 15. cxd4 {[%emt 0:00:11]} Rc8 {[%emt 0:01:18]} 16. Bb3 {[%emt 0:01:54]} exd4 {[%emt 0:09:51]} 17. Nxd4 {[%emt 0:06:23]} Na5 {[%emt 0:05:21]} 18. Bc2 {[%emt 0:01:30]} Nd7 {[%emt 0:04:01]} 19. Re2 {[%emt 0:18:59]} Bf6 {[%emt 0:03:51]} 20. b3 {[%emt 0:06:27]} Re8 {[%emt 0:05:27]} 21. Bb2 {[%emt 0:08:06]} Be5 {[%emt 0:07:41]} 22. Qd2 {[%emt 0:06:33]} Qb6 {[%emt 0:05:21]} 23. Rd1 {[%emt 0:05:09]} Nc6 {[%emt 0:04:04]} 24. Nf1 {[%emt 0:04:21]} Nxd4 {[%emt 0:06:52]} 25. Bxd4 {[%emt 0:00:09]} Rxc2 {[%emt 0:00:05]} 26. Bxb6 {[%emt 0:01:27]} Rxd2 {[%emt 0:00:05]} 27. Nxd2 {[%emt 0:00:24]} Nxb6 {[%emt 0:00:05]} 28. Nf3 {[%emt 0:00:34]} Bf4 {[%emt 0:15:51]} 29. g3 {[%emt 0:00:50]} Bh6 {[%emt 0:00:27]} 30. Rxd6 {[%emt 0:00:16]} Nd5 {[%emt 0:05:18]} 31. Rd7 {[%emt 0:01:48]} Bc6 {[%emt 0:01:26]} 32. Rd6 {[%emt 0:01:41]} Bb7 {[%emt 0:00:02]} 33. a3 {[%emt 0:10:23]} Nc3 {[%emt 0:02:45]} 34. Re1 {[%emt 0:04:17]} Nxe4 {[%emt 0:04:35]} 35. Rd7 {[%emt 0:01:09]} Bc6 {[%emt 0:00:19]} 36. Ra7 {[%emt 0:01:13]} Rc8 {[%emt 0:01:52]} 37. Rxa6 {[%emt 0:01:29]} Nc5 {[%emt 0:00:20]} 38. Rxc6 {[%emt 0:00:44]} Rxc6 {[%emt 0:00:04]} 39. Nd4 {[%emt 0:00:04]} Rb6 {[%emt 0:00:32]} 40. Re5 {[%emt 0:00:08]} Bg7 {[%emt 0:01:18]} 41. Re8+ {[%emt 0:00:05]} Bf8 {[%emt 0:00:03]} 42. b4 {[%emt 0:00:28]} Ne6 {[%emt 0:00:32]} 43. Nc2 {[%emt 0:00:23]} Kg7 {[%emt 0:00:51]} 44. Ra8 {[%emt 0:00:06]} Rc6 {[%emt 0:00:27]} 45. Ne3 {[%emt 0:00:05]} Nd4 {[%emt 0:00:33]} 46. Kg2 {[%emt 0:00:34]} Be7 {[%emt 0:01:29]} 47. h4 {[%emt 0:00:29]} h5 {[%emt 0:00:15]} 48. Ra7 {[%emt 0:00:24]} Bf6 {[%emt 0:00:13]} 49. Nd5 {[%emt 0:00:07]} Rc2 {[%emt 0:01:50]} 50. Rb7 {[%emt 0:01:31]} Ra2 {[%emt 0:00:40]} 51. Nc7 {[%emt 0:00:05]} Be5 {[%emt 0:00:41]} 52. Nxb5 {[%emt 0:00:06]} Nxb5 {[%emt 0:00:10]} 53. Rxb5 {[%emt 0:00:04]} Bb2 {[%emt 0:00:10]} 54. Rd5 {[%emt 0:02:54]} Rxa3 {[%emt 0:00:09]} 55. b5 {[%emt 0:00:07]} Rb3 {[%emt 0:00:14]} 56. f4 {[%emt 0:00:14]} Kf6 {[%emt 0:00:14]} 57. Rg5 {[%emt 0:00:50]} Bc1 {[%emt 0:01:13]} 58. Rc5 {[%emt 0:00:10]} Be3 {[%emt 0:00:11]} 59. Rd5 {[%emt 0:00:08]} Ke6 {[%emt 0:00:52]} 60. Re5+ {[%emt 0:00:18]} Kd6 {[%emt 0:00:05]} 61. Rg5 {[%emt 0:01:13]} Bd2 {[%emt 0:01:46]} 62. Kf2 {[%emt 0:00:57]} Be3+ {[%emt 0:00:18]} 63. Kg2 {[%emt 0:00:04]} Bd4 {[%emt 0:00:28]} 64. f5 {[%emt 0:00:08]} Rxb5 {[%emt 0:00:11]} 65. g4 {[%emt 0:00:10]} Be3 {[%emt 0:00:46]} 66. fxg6 {[%emt 0:00:55]} Bxg5 {[%emt 0:00:05]} 67. g7 {[%emt 0:00:46]} Rb8 {[%emt 0:00:04]} 0-1

[Event "85th Southwest Open 2019"]
[Site "Dallas"]
[Date "2019.09.01"]
[Round "6.13"]
[White "Tiglon, Bryce"]
[Black "Bajarani, Ulvi"]
[Result "1/2-1/2"]
[ECO "B92"]
[WhiteElo "2371"]
[BlackElo "2501"]
[Annotator "RC"]
[PlyCount "128"]
[EventDate "2019.08.29"]
[EventType "swiss"]
[EventCountry "USA"]
[SourceTitle "playchess.com"]
[Source "ChessBase"]
[SourceQuality "1"]
[TimeControl "5400+30"]

1. e4 {[%emt 0:00:00]} c5 {[%emt 0:00:00]} 2. Nf3 {[%emt 0:00:00]} d6 {[%emt 0:00:00]} 3. d4 {[%emt 0:00:00]} cxd4 {[%emt 0:00:00]} 4. Nxd4 {[%emt 0:00:00]} Nf6 {[%emt 0:00:07]} 5. Nc3 {[%emt 0:00:00]} a6 {[%emt 0:00:09]} 6. Be2 {[%emt 0:00:09]} e5 {[%emt 0:00:12]} 7. Nb3 {[%emt 0:00:03]} Be7 {[%emt 0:00:09]} 8. Be3 {[%emt 0:00:04]} Be6 {[%emt 0:00:14]} 9. Nd5 {[%emt 0:00:04]} Nxd5 {[%emt 0:00:22]} 10. exd5 {[%emt 0:00:06]} Bf5 {[%emt 0:00:08]} 11. Qd2 {[%emt 0:00:18]} Nd7 {[%emt 0:01:50]} 12. Na5 {[%emt 0:02:27]} Qc7 {[%emt 0:03:00]} 13. c4 {[%emt 0:00:10]} Bf6 {[%emt 0:02:25]} 14. O-O {[%emt 0:06:25]} b6 {[%emt 0:01:44]} 15. Nc6 {[%emt 0:01:29]} a5 {[%emt 0:00:05]} 16. f4 {[%emt 0:11:20]} exf4 {[%emt 0:00:15]} 17. Bxf4 {[%emt 0:00:20]} O-O {[%emt 0:01:23]} 18. Bxd6 {[%emt 0:02:14]} Qxd6 {[%emt 0:00:10]} 19. Rxf5 {[%emt 0:00:07]} g6 {[%emt 0:01:10]} 20. Rf2 {[%emt 0:05:53]} Bg7 {[%emt 0:02:48]} 21. Raf1 {[%emt 0:02:24]} Rae8 {[%emt 0:01:15]} 22. b3 {[%emt 0:01:33]} f5 {[%emt 0:00:50]} 23. Bf3 {[%emt 0:04:46]} Ne5 {[%emt 0:10:35]} 24. Kh1 {[%emt 0:00:55]} Nd7 {[%emt 0:05:38]} 25. Re2 {[%emt 0:06:55]} Bf6 {[%emt 0:01:49]} 26. Rfe1 {[%emt 0:01:00]} Rxe2 {[%emt 0:00:08]} 27. Rxe2 {[%emt 0:01:45]} Nc5 {[%emt 0:01:11]} 28. Nd4 {[%emt 0:03:44]} Rd8 {[%emt 0:04:06]} 29. Nb5 {[%emt 0:00:54]} Qd7 {[%emt 0:00:43]} 30. d6 {[%emt 0:00:36]} Kg7 {[%emt 0:00:36]} 31. Bd5 {[%emt 0:07:08]} Re8 {[%emt 0:01:18]} 32. Rxe8 {[%emt 0:13:33]} Qxe8 {[%emt 0:00:05]} 33. g3 {[%emt 0:00:31]} h6 {[%emt 0:01:53]} 34. Kg2 {[%emt 0:03:19]} Qe5 {[%emt 0:02:28]} 35. Bf3 {[%emt 0:01:59]} Ne4 {[%emt 0:00:54]} 36. Qd3 {[%emt 0:06:49]} Nc5 {[%emt 0:05:29]} 37. Qd1 {[%emt 0:01:07]} Qe3 {[%emt 0:02:10]} 38. Qe2 {[%emt 0:01:49]} Qxe2+ {[%emt 0:00:40]} 39. Bxe2 {[%emt 0:00:01]} Kf7 {[%emt 0:00:10]} 40. Kf2 {[%emt 0:04:05]} Ke6 {[%emt 0:02:21]} 41. Ke3 {[%emt 0:00:12]} Be5 {[%emt 0:00:27]} 42. Bf3 {[%emt 0:01:02]} Bxd6 {[%emt 0:00:16]} 43. Bd5+ {[%emt 0:00:20]} Ke7 {[%emt 0:00:43]} 44. Nd4 {[%emt 0:02:01]} Be5 {[%emt 0:00:25]} 45. Nc6+ {[%emt 0:00:34]} Kf6 {[%emt 0:00:34]} 46. Bf3 {[%emt 0:01:44]} g5 {[%emt 0:00:22]} 47. Bd5 {[%emt 0:05:18]} Bb2 {[%emt 0:01:34]} 48. b4 {[%emt 0:00:24]} axb4 {[%emt 0:00:59]} 49. Nxb4 {[%emt 0:00:01]} Ba3 {[%emt 0:01:05]} 50. Nd3 {[%emt 0:02:26]} Na6 {[%emt 0:00:44]} 51. h3 {[%emt 0:00:55]} h5 {[%emt 0:00:29]} 52. Bc6 {[%emt 0:01:01]} Nc7 {[%emt 0:00:41]} 53. Kf2 {[%emt 0:00:27]} Ne6 {[%emt 0:00:55]} 54. Be8 {[%emt 0:00:10]} Ng7 {[%emt 0:00:51]} 55. Bd7 {[%emt 0:00:01]} Ke7 {[%emt 0:00:20]} 56. Ba4 {[%emt 0:00:06]} Ne6 {[%emt 0:00:47]} 57. Bd1 {[%emt 0:01:44]} h4 {[%emt 0:00:18]} 58. gxh4 {[%emt 0:00:10]} gxh4 {[%emt 0:00:06]} 59. Bf3 {[%emt 0:00:04]} Kf6 {[%emt 0:00:19]} 60. Bg2 {[%emt 0:00:46]} Kg5 {[%emt 0:00:37]} 61. Bd5 {[%emt 0:00:17]} Nd4 {[%emt 0:00:58]} 62. Ke3 {[%emt 0:00:15]} Nc2+ {[%emt 0:03:34]} 63. Kd2 {[%emt 0:00:01]} Nd4 {[%emt 0:00:59]} 64. Ke3 {[%emt 0:00:01]} Nc2+ {[%emt 0:00:33]} 1/2-1/2

[Event "85th Southwest Open 2019"]
[Site "Dallas"]
[Date "2019.09.01"]
[Round "6.21"]
[White "Easton, Jack"]
[Black "Guo, Arthur"]
[Result "0-1"]
[ECO "E32"]
[WhiteElo "2182"]
[BlackElo "2295"]
[Annotator "RC"]
[PlyCount "60"]
[EventDate "2019.08.29"]
[EventType "swiss"]
[EventCountry "USA"]
[SourceTitle "playchess.com"]
[Source "ChessBase"]
[SourceQuality "1"]
[TimeControl "5400+30"]

1. d4 {[%emt 0:03:27]} Nf6 {[%emt 0:00:00]} 2. c4 {[%emt 0:00:01]} e6 {[%emt 0:00:00]} 3. Nc3 {[%emt 0:00:02]} Bb4 {[%emt 0:00:00]} 4. Qc2 {[%emt 0:00:01]} d6 {[%emt 0:00:16]} 5. Nf3 {[%emt 0:06:42]} Nbd7 {[%emt 0:00:41]} 6. g4 {[%emt 0:01:42]} d5 {[%emt 0:02:25]} 7. Bd2 {[%emt 0:02:07]} O-O {[%emt 0:02:55]} 8. g5 {[%emt 0:10:03]} Bxc3 {[%emt 0:00:13]} 9. Bxc3 {[%emt 0:00:03]} Ne4 {[%emt 0:00:08]} 10. h4 {[%emt 0:01:11]} b6 {[%emt 0:02:59]} 11. Bg2 {[%emt 0:06:43]} Ba6 {[%emt 0:06:23]} 12. cxd5 {[%emt 0:04:35]} exd5 {[%emt 0:00:24]} 13. Nd2 {[%emt 0:00:25]} Nxc3 {[%emt 0:07:15]} 14. Qxc3 {[%emt 0:00:01]} Re8 {[%emt 0:01:27]} 15. O-O-O {[%emt 0:03:03]} Bxe2 {[%emt 0:05:25]} 16. Rdg1 {[%emt 0:05:03]} c5 {[%emt 0:05:50]} 17. Kb1 {[%emt 0:00:45]} Rc8 {[%emt 0:06:26]} 18. h5 {[%emt 0:05:12]} Nf8 {[%emt 0:08:10]} 19. Bh3 {[%emt 0:03:46]} Ne6 {[%emt 0:03:07]} 20. g6 {[%emt 0:08:30]} fxg6 {[%emt 0:01:46]} 21. hxg6 {[%emt 0:00:01]} h6 {[%emt 0:00:28]} 22. dxc5 {[%emt 0:14:02]} bxc5 {[%emt 0:03:09]} 23. Re1 {[%emt 0:10:58]} d4 {[%emt 0:03:59]} 24. Qa3 {[%emt 0:01:28]} d3 {[%emt 0:01:22]} 25. Qxa7 {[%emt 0:00:10]} Rc7 {[%emt 0:04:36]} 26. Qa6 {[%emt 0:00:28]} Nd4 {[%emt 0:02:07]} 27. Qc4+ {[%emt 0:01:15]} Kh8 {[%emt 0:00:02]} 28. Bg2 {[%emt 0:04:40]} Qg5 {[%emt 0:01:55]} 29. Ne4 {[%emt 0:01:23]} Qxg2 {[%emt 0:00:51]} 30. Nxc5 {[%emt 0:03:07]} Qxg6 {[%emt 0:01:39]} 0-1

[Event "85th Southwest Open 2019"]
[Site "Dallas"]
[Date "2019.09.02"]
[Round "7.10"]
[White "Hong, Andrew"]
[Black "Berczes, David"]
[Result "0-1"]
[ECO "C13"]
[WhiteElo "2440"]
[BlackElo "2488"]
[Annotator "RC"]
[PlyCount "124"]
[EventDate "2019.08.29"]
[EventType "swiss"]
[EventCountry "USA"]
[SourceTitle "playchess.com"]
[Source "ChessBase"]
[SourceQuality "1"]
[TimeControl "5400+30"]

1. e4 {[%emt 0:00:00]} e6 {[%emt 0:00:11]} 2. d4 {[%emt 0:00:16]} d5 {[%emt 0:00:04]} 3. Nc3 {[%emt 0:00:25]} Nf6 {[%emt 0:00:05]} 4. Bg5 {[%emt 0:00:22]} dxe4 {[%emt 0:00:07]} 5. Nxe4 {[%emt 0:00:14]} Be7 {[%emt 0:00:04]} 6. Bxf6 {[%emt 0:00:23]} gxf6 {[%emt 0:00:06]} 7. Qd2 {[%emt 0:00:56]} b6 {[%emt 0:00:37]} 8. O-O-O {[%emt 0:00:37]} Bb7 {[%emt 0:00:09]} 9. Nc3 {[%emt 0:00:16]} c6 {[%emt 0:00:26]} 10. Kb1 {[%emt 0:00:50]} Nd7 {[%emt 0:00:25]} 11. Qh6 {[%emt 0:00:40]} Qc7 {[%emt 0:01:59]} 12. Be2 {[%emt 0:00:40]} O-O-O {[%emt 0:06:33]} 13. Bh5 {[%emt 0:00:21]} Rdf8 {[%emt 0:01:47]} 14. Nf3 {[%emt 0:00:21]} Rhg8 {[%emt 0:07:09]} 15. g3 {[%emt 0:04:32]} b5 {[%emt 0:09:11]} 16. Rhe1 {[%emt 0:18:39]} b4 {[%emt 0:35:28]} 17. Ne4 {[%emt 0:29:52]} Qa5 {[%emt 0:01:22]} 18. g4 {[%emt 0:08:42]} Ba6 {[%emt 0:21:35]} 19. Qxh7 {[%emt 0:10:21]} Rh8 {[%emt 0:01:51]} 20. Qg7 {[%emt 0:00:16]} Rhg8 {[%emt 0:01:15]} 21. Qh7 {[%emt 0:03:40]} Rh8 {[%emt 0:00:07]} 22. Qg7 {[%emt 0:00:05]} Rhg8 {[%emt 0:00:04]} 23. Qh6 {[%emt 0:03:31]} Bc4 {[%emt 0:00:42]} 24. b3 {[%emt 0:00:22]} Bd5 {[%emt 0:00:04]} 25. Nfd2 {[%emt 0:04:20]} f5 {[%emt 0:06:22]} 26. gxf5 {[%emt 0:03:01]} Rh8 {[%emt 0:00:22]} 27. Qf4 {[%emt 0:06:14]} Rxh5 {[%emt 0:00:09]} 28. f6 {[%emt 0:00:03]} Bd8 {[%emt 0:03:45]} 29. Nd6+ {[%emt 0:00:52]} Kb8 {[%emt 0:00:01]} 30. Nxf7+ {[%emt 0:00:47]} Qc7 {[%emt 0:00:52]} 31. Ne5 {[%emt 0:00:30]} Nxf6 {[%emt 0:01:28]} 32. Rg1 {[%emt 0:00:48]} Ka8 {[%emt 0:00:34]} 33. Rg6 {[%emt 0:00:56]} Nd7 {[%emt 0:00:46]} 34. Qg4 {[%emt 0:00:24]} Nxe5 {[%emt 0:00:48]} 35. dxe5 {[%emt 0:00:13]} Rxe5 {[%emt 0:00:29]} 36. Qxb4 {[%emt 0:01:05]} c5 {[%emt 0:00:18]} 37. Qb5 {[%emt 0:01:02]} Bc6 {[%emt 0:00:44]} 38. Qf1 {[%emt 0:00:56]} Ref5 {[%emt 0:00:29]} 39. Rxe6 {[%emt 0:00:23]} Rxf2 {[%emt 0:00:18]} 40. Qe1 {[%emt 0:01:01]} Bd5 {[%emt 0:00:42]} 41. Re5 {[%emt 0:00:28]} Bb7 {[%emt 0:00:27]} 42. Ne4 {[%emt 0:01:03]} Qxe5 {[%emt 0:00:31]} 43. Qxf2 {[%emt 0:00:10]} Rxf2 {[%emt 0:00:32]} 44. Rxd8+ {[%emt 0:00:05]} Bc8 {[%emt 0:00:01]} 45. Nxf2 {[%emt 0:00:24]} Qe1+ {[%emt 0:01:00]} 46. Kb2 {[%emt 0:00:56]} Qe5+ {[%emt 0:00:02]} 47. Kb1 {[%emt 0:00:22]} Qc7 {[%emt 0:00:08]} 48. Rf8 {[%emt 0:01:01]} Kb7 {[%emt 0:01:18]} 49. Ne4 {[%emt 0:00:26]} Qe5 {[%emt 0:00:14]} 50. Re8 {[%emt 0:00:23]} Qd4 {[%emt 0:00:10]} 51. Ng3 {[%emt 0:00:42]} c4 {[%emt 0:00:52]} 52. Re4 {[%emt 0:00:31]} Qg1+ {[%emt 0:00:27]} 53. Kb2 {[%emt 0:00:01]} Qxh2 {[%emt 0:00:25]} 54. Re3 {[%emt 0:00:07]} Qh8+ {[%emt 0:00:45]} 55. Rc3 {[%emt 0:00:35]} Kc6 {[%emt 0:00:39]} 56. Nf1 {[%emt 0:00:51]} Be6 {[%emt 0:00:22]} 57. Ne3 {[%emt 0:00:56]} Qd4 {[%emt 0:00:17]} 58. bxc4 {[%emt 0:00:32]} a5 {[%emt 0:00:23]} 59. Nd5 {[%emt 0:00:29]} Bxd5 {[%emt 0:00:28]} 60. cxd5+ {[%emt 0:00:02]} Kxd5 {[%emt 0:00:36]} 61. a4 {[%emt 0:00:12]} Ke4 {[%emt 0:00:43]} 62. Kb3 {[%emt 0:00:25]} Qb4+ {[%emt 0:01:12] Kb2} 0-1

[Event "85th Southwest Open 2019"]
[Site "Dallas"]
[Date "2019.09.02"]
[Round "7.24"]
[White "Noland, Shawn"]
[Black "Shamatava, Ana"]
[Result "0-1"]
[ECO "C00"]
[WhiteElo "1950"]
[BlackElo "2159"]
[Annotator "RC"]
[PlyCount "130"]
[EventDate "2019.08.29"]
[EventType "swiss"]
[EventCountry "USA"]
[SourceTitle "playchess.com"]
[Source "ChessBase"]
[SourceQuality "1"]
[TimeControl "5400+30"]

1. Nf3 {[%emt 0:00:00]} Nf6 {[%emt 0:00:22]} 2. g3 {[%emt 0:00:03]} d5 {[%emt 0:01:23]} 3. Bg2 {[%emt 0:01:01]} e6 {[%emt 0:00:06]} 4. O-O {[%emt 0:00:36]} Be7 {[%emt 0:00:14]} 5. d3 {[%emt 0:01:05]} c5 {[%emt 0:01:51]} 6. Nbd2 {[%emt 0:00:07]} Nc6 {[%emt 0:00:45]} 7. Re1 {[%emt 0:01:18]} O-O {[%emt 0:00:07]} 8. e4 {[%emt 0:00:23]} dxe4 {[%emt 0:02:19]} 9. dxe4 {[%emt 0:00:19]} e5 {[%emt 0:00:06]} 10. h3 {[%emt 0:02:09]} h6 {[%emt 0:03:28]} 11. b3 {[%emt 0:01:39]} Be6 {[%emt 0:01:22]} 12. Bb2 {[%emt 0:07:06]} Qc7 {[%emt 0:01:32]} 13. c3 {[%emt 0:02:34]} b5 {[%emt 0:03:11]} 14. Qe2 {[%emt 0:01:37]} a6 {[%emt 0:02:38]} 15. Nh4 {[%emt 0:07:36]} Rfd8 {[%emt 0:02:00]} 16. Nf1 {[%emt 0:01:24]} c4 {[%emt 0:03:18]} 17. b4 {[%emt 0:15:37]} a5 {[%emt 0:02:26]} 18. a3 {[%emt 0:01:43]} Rd3 {[%emt 0:02:03]} 19. Nf3 {[%emt 0:03:43]} Rad8 {[%emt 0:01:05]} 20. Rec1 {[%emt 0:02:31]} Nd7 {[%emt 0:05:51]} 21. Ne1 {[%emt 0:06:34]} Nb6 {[%emt 0:07:53]} 22. Rc2 {[%emt 0:01:31]} Na4 {[%emt 0:00:51]} 23. Rb1 {[%emt 0:06:08]} Qd7 {[%emt 0:07:08]} 24. Kh2 {[%emt 0:01:44]} f6 {[%emt 0:07:28]} 25. Nf3 {[%emt 0:01:47]} axb4 {[%emt 0:02:37]} 26. axb4 {[%emt 0:00:28]} Bxb4 {[%emt 0:00:52]} 27. cxb4 {[%emt 0:03:42]} Nxb4 {[%emt 0:00:05]} 28. Rd2 {[%emt 0:08:19]} Rxd2 {[%emt 0:04:28]} 29. Qxd2 {[%emt 0:01:01]} Qxd2 {[%emt 0:00:52]} 30. N3xd2 {[%emt 0:02:05]} Nxb2 {[%emt 0:02:14]} 31. Rxb2 {[%emt 0:06:04]} c3 {[%emt 0:00:49]} 32. Rb1 {[%emt 0:00:09]} Na2 {[%emt 0:00:42]} 33. Rxb5 {[%emt 0:00:59]} cxd2 {[%emt 0:01:01]} 34. Nxd2 {[%emt 0:00:18]} Rxd2 {[%emt 0:00:06]} 35. Rb6 {[%emt 0:01:32]} Bc4 {[%emt 0:02:04]} 36. Kg1 {[%emt 0:02:00]} Nc3 {[%emt 0:01:31]} 37. Rc6 {[%emt 0:00:51]} Rd1+ {[%emt 0:01:19]} 38. Kh2 {[%emt 0:00:05]} Rd4 {[%emt 0:00:12]} 39. f3 {[%emt 0:00:52]} Nd1 {[%emt 0:01:05]} 40. h4 {[%emt 0:01:51]} Be2 {[%emt 0:04:25]} 41. Rc2 {[%emt 0:00:58]} Bc4 {[%emt 0:01:03]} 42. Bh3 {[%emt 0:00:14]} Kf7 {[%emt 0:00:11]} 43. h5 {[%emt 0:01:21]} Ne3 {[%emt 0:02:02]} 44. Rb2 {[%emt 0:02:01]} Nf1+ {[%emt 0:01:12]} 45. Bxf1 {[%emt 0:04:11]} Bxf1 {[%emt 0:00:10]} 46. Rb7+ {[%emt 0:00:09]} Kf8 {[%emt 0:00:36]} 47. Rb8+ {[%emt 0:00:08]} Ke7 {[%emt 0:00:05]} 48. Rb7+ {[%emt 0:00:39]} Rd7 {[%emt 0:00:05]} 49. Rb1 {[%emt 0:00:04]} Rd2+ {[%emt 0:03:03]} 50. Kg1 {[%emt 0:00:11]} Bh3 {[%emt 0:04:56]} 51. Rb7+ {[%emt 0:00:19]} Kf8 {[%emt 0:00:25]} 52. g4 {[%emt 0:01:02]} Rg2+ {[%emt 0:00:11]} 53. Kh1 {[%emt 0:00:02]} Rg3 {[%emt 0:01:01]} 54. Rb3 {[%emt 0:00:15]} Bxg4 {[%emt 0:00:10]} 55. Rb8+ {[%emt 0:00:02]} Kf7 {[%emt 0:00:06]} 56. Rb7+ {[%emt 0:00:21]} Kg8 {[%emt 0:00:10]} 57. Rb8+ {[%emt 0:00:20]} Kh7 {[%emt 0:00:05]} 58. fxg4 {[%emt 0:00:02]} Rxg4 {[%emt 0:00:05]} 59. Rb4 {[%emt 0:00:06]} Rh4+ {[%emt 0:00:12]} 60. Kg2 {[%emt 0:00:04]} Rxh5 {[%emt 0:00:06]} 61. Kg3 {[%emt 0:00:11]} Rg5+ {[%emt 0:00:10]} 62. Kh4 {[%emt 0:00:22]} Kg6 {[%emt 0:00:10]} 63. Rb6 {[%emt 0:00:11]} h5 {[%emt 0:21:27]} 64. Rb4 {[%emt 0:00:04]} Rg4+ {[%emt 0:00:00]} 65. Kh3 {[%emt 0:00:04]} Kg5 {[%emt 0:01:00]} 0-1